[Event "*** Qualifier 4: Titled Tuesday 3|2 Blitz"]
[Site "Chess.com"]
[Date "2017.04.25"]
[Round "5"]
[White "prochn"]
[Black "brauliocuarta"]
[Result "0-1"]
[WhiteElo "2179"]
[BlackElo "2053"]
[TimeControl "180+2"]
[EndTime "14:04:55 PDT"]
[Termination "brauliocuarta won on time"]

1. d4 {[%clk 0:03:02]} 1... Nf6 {[%clk 0:02:57]} 2. c4 {[%clk 0:03:02.3]} 2...
c5 {[%clk 0:02:57.8]} 3. d5 {[%clk 0:03:03.2]} 3... b5 {[%clk 0:02:59]} 4. cxb5
{[%clk 0:03:04.6]} 4... a6 {[%clk 0:03:00.1]} 5. bxa6 {[%clk 0:03:05.9]} 5... g6
{[%clk 0:03:00.2]} 6. Nc3 {[%clk 0:03:06.6]} 6... Bxa6 {[%clk 0:03:00.9]} 7. g3
{[%clk 0:03:07.2]} 7... Bg7 {[%clk 0:03:00.9]} 8. Bg2 {[%clk 0:03:08.1]} 8... d6
{[%clk 0:03:02.6]} 9. Nf3 {[%clk 0:03:08.8]} 9... O-O {[%clk 0:03:03.7]} 10. O-O
{[%clk 0:03:09.7]} 10... Nbd7 {[%clk 0:03:04.9]} 11. Re1 {[%clk 0:03:09.9]}
11... Ra7 {[%clk 0:03:05.7]} 12. e4 {[%clk 0:03:05.9]} 12... Ng4 {[%clk
0:03:03.7]} 13. Qc2 {[%clk 0:02:49.1]} 13... Nge5 {[%clk 0:03:01.7]} 14. b3
{[%clk 0:02:19.8]} 14... Qa5 {[%clk 0:02:45.6]} 15. Bd2 {[%clk 0:01:49]} 15...
Nd3 {[%clk 0:02:23.8]} 16. Red1 {[%clk 0:01:45.4]} 16... Rc8 {[%clk 0:02:14.1]}
17. Na4 {[%clk 0:01:35.9]} 17... Nb4 {[%clk 0:02:05.9]} 18. Qc1 {[%clk 0:01:25]}
18... Bxa1 {[%clk 0:01:37.2]} 19. Qxa1 {[%clk 0:01:25.3]} 19... Be2 {[%clk
0:01:36.3]} 20. Re1 {[%clk 0:01:19.4]} 20... Bxf3 {[%clk 0:01:36.5]} 21. Bxf3
{[%clk 0:01:19.7]} 21... Qd8 {[%clk 0:01:20]} 22. Rc1 {[%clk 0:01:07.5]} 22...
Ne5 {[%clk 0:01:15.4]} 23. Be2 {[%clk 0:01:06.7]} 23... Nbd3 {[%clk 0:00:50.5]}
24. Rd1 {[%clk 0:01:03.8]} 24... c4 {[%clk 0:00:44.4]} 25. Bh6 {[%clk
0:00:54.8]} 25... f6 {[%clk 0:00:38.1]} 26. f4 {[%clk 0:00:52.7]} 26... Nf7
{[%clk 0:00:27.9]} 27. Qd4 {[%clk 0:00:45.6]} 27... Rac7 {[%clk 0:00:25.1]} 28.
Nb6 {[%clk 0:00:43.2]} 28... Rb8 {[%clk 0:00:25.7]} 29. Nxc4 {[%clk 0:00:43.9]}
29... Nc5 {[%clk 0:00:25.4]} 30. Bg5 {[%clk 0:00:31.7]} 30... fxg5 {[%clk
0:00:25.4]} 31. fxg5 {[%clk 0:00:30.4]} 31... Nxg5 {[%clk 0:00:24.2]} 32. h4
{[%clk 0:00:28.5]} 32... Ngxe4 {[%clk 0:00:22.7]} 33. Bg4 {[%clk 0:00:22.7]}
33... e5 {[%clk 0:00:10.2]} 34. dxe6 {[%clk 0:00:22.3]} 34... Qf6 {[%clk
0:00:10.9]} 35. Qe3 {[%clk 0:00:16.9]} 35... d5 {[%clk 0:00:09.7]} 36. Rxd5
{[%clk 0:00:16.8]} 36... Rf8 {[%clk 0:00:09.2]} 37. Rd1 {[%clk 0:00:16.2]} 37...
Re7 {[%clk 0:00:08.9]} 38. b4 {[%clk 0:00:15.7]} 38... Nxe6 {[%clk 0:00:07]} 39.
Qxe4 {[%clk 0:00:15.6]} 39... Qf2+ {[%clk 0:00:07.8]} 40. Kh1 {[%clk 0:00:16.1]}
40... Qxg3 {[%clk 0:00:08.8]} 41. Qg2 {[%clk 0:00:16.8]} 41... Qxh4+ {[%clk
0:00:08.9]} 42. Qh3 {[%clk 0:00:14.4]} 42... Qxh3+ {[%clk 0:00:09.3]} 43. Bxh3
{[%clk 0:00:15.6]} 43... Nf4 {[%clk 0:00:10.6]} 44. Bg2 {[%clk 0:00:16.4]} 44...
Nxg2 {[%clk 0:00:11.5]} 45. Kxg2 {[%clk 0:00:17.5]} 45... Re4 {[%clk 0:00:13.3]}
46. Nd6 {[%clk 0:00:13.7]} 46... Rxb4 {[%clk 0:00:14.2]} 47. Rd2 {[%clk
0:00:14]} 47... Ra8 {[%clk 0:00:14.1]} 48. Kf3 {[%clk 0:00:12.6]} 48... Rba4
{[%clk 0:00:15.2]} 49. Ne4 {[%clk 0:00:13]} 49... Rxa2 {[%clk 0:00:15.7]} 50.
Rd7 {[%clk 0:00:13.8]} 50... R8a3+ {[%clk 0:00:14.5]} 51. Kf4 {[%clk 0:00:14.5]}
51... Ra4 {[%clk 0:00:15]} 52. Ke5 {[%clk 0:00:14.9]} 52... Re2 {[%clk
0:00:15.5]} 53. Kf6 {[%clk 0:00:12.7]} 53... Ra6+ {[%clk 0:00:13.3]} 54. Nd6
{[%clk 0:00:13.6]} 54... Rf2+ {[%clk 0:00:13.1]} 55. Kg5 {[%clk 0:00:11.5]}
55... Rd2 {[%clk 0:00:12.9]} 56. Rd8+ {[%clk 0:00:11.1]} 56... Kg7 {[%clk
0:00:13.8]} 57. Rd7+ {[%clk 0:00:09.3]} 57... Kf8 {[%clk 0:00:14]} 0-1

[Event "*** Qualifier 4: Titled Tuesday 3|2 Blitz"]
[Site "Chess.com"]
[Date "2017.04.25"]
[Round "5"]
[White "Sanan_Sjugirov"]
[Black "Aygehovit1992"]
[Result "0-1"]
[WhiteElo "2630"]
[BlackElo "2487"]
[TimeControl "180+2"]
[EndTime "14:05:27 PDT"]
[Termination "Aygehovit1992 won on time"]

1. e4 {[%clk 0:03:00]} 1... d6 {[%clk 0:03:01.1]} 2. d4 {[%clk 0:03:00.6]} 2...
g6 {[%clk 0:03:02.6]} 3. Nc3 {[%clk 0:03:00.6]} 3... Bg7 {[%clk 0:03:04.1]} 4.
Nf3 {[%clk 0:02:58.3]} 4... Nf6 {[%clk 0:03:04.1]} 5. Be2 {[%clk 0:02:59.4]}
5... O-O {[%clk 0:03:05.2]} 6. O-O {[%clk 0:03:00.4]} 6... Nc6 {[%clk
0:03:06.1]} 7. d5 {[%clk 0:02:53.3]} 7... Nb8 {[%clk 0:03:05.6]} 8. h3 {[%clk
0:02:50.5]} 8... e5 {[%clk 0:02:56.2]} 9. dxe6 {[%clk 0:02:46.9]} 9... Bxe6
{[%clk 0:02:57.3]} 10. Nd4 {[%clk 0:02:44.5]} 10... Re8 {[%clk 0:02:55.7]} 11.
Nxe6 {[%clk 0:02:42.2]} 11... Rxe6 {[%clk 0:02:56.7]} 12. Bc4 {[%clk 0:02:40.3]}
12... Re8 {[%clk 0:02:52.5]} 13. Re1 {[%clk 0:02:37.1]} 13... Nc6 {[%clk
0:02:53.5]} 14. Bg5 {[%clk 0:02:34.1]} 14... h6 {[%clk 0:02:54]} 15. Bh4 {[%clk
0:02:33.7]} 15... g5 {[%clk 0:02:55]} 16. Bg3 {[%clk 0:02:34.9]} 16... Ne5
{[%clk 0:02:55.8]} 17. Bb3 {[%clk 0:02:33.8]} 17... Ng6 {[%clk 0:02:45]} 18. Qf3
{[%clk 0:02:28.6]} 18... a5 {[%clk 0:02:37.8]} 19. Rad1 {[%clk 0:02:27.9]} 19...
Qe7 {[%clk 0:02:26.3]} 20. Qf5 {[%clk 0:02:21.3]} 20... Nh4 {[%clk 0:02:09.6]}
21. Bxh4 {[%clk 0:02:20.4]} 21... gxh4 {[%clk 0:02:11.5]} 22. f4 {[%clk
0:02:13.3]} 22... Qd7 {[%clk 0:00:45.6]} 23. Qxd7 {[%clk 0:02:13.5]} 23... Nxd7
{[%clk 0:00:46.6]} 24. Nb5 {[%clk 0:02:14.7]} 24... a4 {[%clk 0:00:42.2]} 25.
Bc4 {[%clk 0:02:13.2]} 25... Nb6 {[%clk 0:00:37.8]} 26. Bd3 {[%clk 0:01:57.2]}
26... Re7 {[%clk 0:00:38.1]} 27. c3 {[%clk 0:01:55.6]} 27... a3 {[%clk
0:00:39.1]} 28. b3 {[%clk 0:01:43.3]} 28... c6 {[%clk 0:00:39.9]} 29. Nxd6
{[%clk 0:01:42.9]} 29... Bxc3 {[%clk 0:00:41.1]} 30. Rf1 {[%clk 0:01:34.8]}
30... Bb4 {[%clk 0:00:33.7]} 31. Nf5 {[%clk 0:01:32.1]} 31... Rd7 {[%clk
0:00:34]} 32. Nxh6+ {[%clk 0:01:15.3]} 32... Kf8 {[%clk 0:00:34.8]} 33. Be2
{[%clk 0:01:02.3]} 33... Rad8 {[%clk 0:00:33.3]} 34. Rxd7 {[%clk 0:00:54.5]}
34... Rxd7 {[%clk 0:00:34.4]} 35. Rd1 {[%clk 0:00:55.7]} 35... Rxd1+ {[%clk
0:00:34.3]} 36. Bxd1 {[%clk 0:00:57.6]} 36... Bd2 {[%clk 0:00:35.7]} 37. Nf5
{[%clk 0:00:55.3]} 37... Bxf4 {[%clk 0:00:36.7]} 38. Nxh4 {[%clk 0:00:56.7]}
38... Nc8 {[%clk 0:00:37.8]} 39. Be2 {[%clk 0:00:45.7]} 39... Nd6 {[%clk
0:00:36.7]} 40. Bd3 {[%clk 0:00:46.9]} 40... b5 {[%clk 0:00:33.6]} 41. Nf3
{[%clk 0:00:42]} 41... Ke7 {[%clk 0:00:19.1]} 42. Kf2 {[%clk 0:00:41.5]} 42...
Ke6 {[%clk 0:00:14.7]} 43. g3 {[%clk 0:00:41.5]} 43... Bc1 {[%clk 0:00:15.3]}
44. h4 {[%clk 0:00:30.7]} 44... f6 {[%clk 0:00:16.7]} 45. Ke2 {[%clk 0:00:21.2]}
45... c5 {[%clk 0:00:17.2]} 46. Bc2 {[%clk 0:00:20.3]} 46... c4 {[%clk
0:00:15.4]} 47. bxc4 {[%clk 0:00:18.8]} 47... bxc4 {[%clk 0:00:15.5]} 48. Nd4+
{[%clk 0:00:17.9]} 48... Ke5 {[%clk 0:00:14.1]} 49. Nc6+ {[%clk 0:00:18.8]}
49... Ke6 {[%clk 0:00:15.4]} 50. h5 {[%clk 0:00:13]} 50... Nb5 {[%clk
0:00:16.1]} 51. Kf3 {[%clk 0:00:05.6]} 51... Nc3 {[%clk 0:00:16.5]} 52. Na5
{[%clk 0:00:03.9]} 52... Nxa2 {[%clk 0:00:15.8]} 53. Nxc4 {[%clk 0:00:05.2]}
53... Nb4 {[%clk 0:00:16.9]} 54. Nxa3 {[%clk 0:00:04.7]} 54... Bxa3 {[%clk
0:00:17.1]} 55. Bb3+ {[%clk 0:00:06.2]} 55... Ke7 {[%clk 0:00:17.4]} 56. h6
{[%clk 0:00:07.1]} 56... Kf8 {[%clk 0:00:18]} 57. Kf4 {[%clk 0:00:07.3]} 57...
Nc6 {[%clk 0:00:19]} 58. Bd5 {[%clk 0:00:07.3]} 58... Ne7 {[%clk 0:00:19.6]} 59.
h7 {[%clk 0:00:06.4]} 59... Bd6+ {[%clk 0:00:20.4]} 60. Kg4 {[%clk 0:00:07.3]}
60... Kg7 {[%clk 0:00:21.6]} 61. Bg8 {[%clk 0:00:05.5]} 61... Be5 {[%clk
0:00:14]} 0-1

[Event "*** Qualifier 4: Titled Tuesday 3|2 Blitz"]
[Site "Chess.com"]
[Date "2017.04.25"]
[Round "5"]
[White "geeeeri"]
[Black "ehrenfeld"]
[Result "0-1"]
[WhiteElo "2271"]
[BlackElo "2369"]
[TimeControl "180+2"]
[EndTime "14:05:31 PDT"]
[Termination "ehrenfeld won by resignation"]

1. e4 {[%clk 0:03:02]} 1... d6 {[%clk 0:03:00.5]} 2. d4 {[%clk 0:03:02.4]} 2...
g6 {[%clk 0:03:01.6]} 3. Nc3 {[%clk 0:03:03.8]} 3... Bg7 {[%clk 0:03:02.6]} 4.
Be3 {[%clk 0:03:05.5]} 4... a6 {[%clk 0:03:03.2]} 5. f3 {[%clk 0:03:07]} 5... b5
{[%clk 0:03:03.5]} 6. h4 {[%clk 0:03:07.2]} 6... h5 {[%clk 0:03:03.8]} 7. Nh3
{[%clk 0:03:07.9]} 7... Bxh3 {[%clk 0:03:03.3]} 8. Rxh3 {[%clk 0:03:07.5]} 8...
Nf6 {[%clk 0:03:01]} 9. Qd2 {[%clk 0:03:07.1]} 9... Nbd7 {[%clk 0:03:00.1]} 10.
Bg5 {[%clk 0:03:03.9]} 10... c6 {[%clk 0:02:59.8]} 11. Be2 {[%clk 0:02:58.7]}
11... Qc7 {[%clk 0:03:00.3]} 12. a3 {[%clk 0:02:59.1]} 12... c5 {[%clk
0:03:00.8]} 13. Be3 {[%clk 0:02:50.7]} 13... cxd4 {[%clk 0:02:59.2]} 14. Bxd4
{[%clk 0:02:52.6]} 14... Rc8 {[%clk 0:02:59.7]} 15. g4 {[%clk 0:02:41.3]} 15...
hxg4 {[%clk 0:02:31.1]} 16. fxg4 {[%clk 0:02:43.2]} 16... Nc5 {[%clk 0:01:59.4]}
17. Bf3 {[%clk 0:02:24.4]} 17... Ne6 {[%clk 0:01:56.3]} 18. Be3 {[%clk
0:02:25.1]} 18... Nd7 {[%clk 0:01:47.3]} 19. h5 {[%clk 0:01:46.1]} 19... g5
{[%clk 0:01:48.2]} 20. Be2 {[%clk 0:01:24.6]} 20... Bxc3 {[%clk 0:01:43.1]} 21.
Qxc3 {[%clk 0:01:23.2]} 21... Qxc3+ {[%clk 0:01:44]} 22. bxc3 {[%clk 0:01:25.1]}
22... Rxc3 {[%clk 0:01:43.3]} 23. Kd2 {[%clk 0:01:25.9]} 23... Rc6 {[%clk
0:01:31.7]} 24. a4 {[%clk 0:01:20.1]} 24... bxa4 {[%clk 0:01:32.3]} 25. Rxa4
{[%clk 0:01:22]} 25... Ndc5 {[%clk 0:01:27.6]} 26. Rb4 {[%clk 0:01:06.3]} 26...
O-O {[%clk 0:01:24]} 27. Rh1 {[%clk 0:00:27.1]} 27... Rfc8 {[%clk 0:01:24.1]}
28. Rhb1 {[%clk 0:00:22.2]} 28... Nd7 {[%clk 0:01:23.6]} 29. Bd3 {[%clk
0:00:21.6]} 29... Ne5 {[%clk 0:01:24]} 30. Rb8 {[%clk 0:00:20.2]} 30... Nxg4
{[%clk 0:01:22.2]} 31. Rxc8+ {[%clk 0:00:19.9]} 31... Rxc8 {[%clk 0:01:22.7]}
32. Bb6 {[%clk 0:00:09.3]} 32... Nf6 {[%clk 0:01:17.6]} 33. Ke3 {[%clk
0:00:07.1]} 33... Nxh5 {[%clk 0:01:15.8]} 34. Rg1 {[%clk 0:00:07.8]} 34... Nhf4
{[%clk 0:01:12]} 35. Bd4 {[%clk 0:00:03.8]} 35... Nxd4 {[%clk 0:01:04.2]} 36.
Rxg5+ {[%clk 0:00:03.9]} 36... Ng6 {[%clk 0:01:03.9]} 37. Kxd4 {[%clk
0:00:04.9]} 37... Kg7 {[%clk 0:00:49.8]} 38. Ra5 {[%clk 0:00:06.8]} 38... Ne5
{[%clk 0:00:48.5]} 39. Rxa6 {[%clk 0:00:07.2]} 39... Nxd3 {[%clk 0:00:48.9]} 40.
cxd3 {[%clk 0:00:09.1]} 40... Rc5 {[%clk 0:00:49.2]} 41. Ra7 {[%clk 0:00:09.9]}
41... Kf6 {[%clk 0:00:50.2]} 42. Ra1 {[%clk 0:00:11.8]} 42... Ke6 {[%clk
0:00:51.1]} 43. Rf1 {[%clk 0:00:13.7]} 43... f5 {[%clk 0:00:51.6]} 44. exf5+
{[%clk 0:00:14.2]} 44... Rxf5 {[%clk 0:00:52.5]} 45. Re1+ {[%clk 0:00:16.1]}
45... Re5 {[%clk 0:00:53.3]} 46. Rc1 {[%clk 0:00:18]} 46... Re2 {[%clk
0:00:53.5]} 47. Rh1 {[%clk 0:00:17.2]} 47... Kd7 {[%clk 0:00:52.6]} 48. Rh7
{[%clk 0:00:18.1]} 48... Kc6 {[%clk 0:00:51.2]} 49. Rh6 {[%clk 0:00:18.8]} 49...
e5+ {[%clk 0:00:51.4]} 50. Kc4 {[%clk 0:00:20.3]} 50... Re1 {[%clk 0:00:49.4]}
51. Rh8 {[%clk 0:00:18.9]} 51... Rc1+ {[%clk 0:00:48.5]} 52. Kb3 {[%clk
0:00:19.8]} 52... Kd5 {[%clk 0:00:49.1]} 53. Kb2 {[%clk 0:00:20.4]} 53... Rc6
{[%clk 0:00:49]} 54. Rh4 {[%clk 0:00:21.8]} 54... Rc7 {[%clk 0:00:46.4]} 55. Kb3
{[%clk 0:00:22.9]} 55... Rc6 {[%clk 0:00:46.3]} 56. Kb2 {[%clk 0:00:24.2]} 56...
Ke6 {[%clk 0:00:45.9]} 57. Kb3 {[%clk 0:00:20.8]} 57... Kf5 {[%clk 0:00:46.7]}
58. Kb2 {[%clk 0:00:20.2]} 58... d5 {[%clk 0:00:47.6]} 59. Kb3 {[%clk
0:00:21.1]} 59... e4 {[%clk 0:00:37.2]} 60. Rh3 {[%clk 0:00:22.2]} 60... exd3
{[%clk 0:00:35.8]} 61. Rxd3 {[%clk 0:00:22.8]} 61... Ke4 {[%clk 0:00:36.7]} 62.
Rd1 {[%clk 0:00:24.2]} 62... d4 {[%clk 0:00:37.9]} 63. Re1+ {[%clk 0:00:24.9]}
63... Kd3 {[%clk 0:00:38.4]} 64. Re8 {[%clk 0:00:25.8]} 64... Kd2 {[%clk
0:00:38.9]} 65. Rd8 {[%clk 0:00:25.8]} 65... d3 {[%clk 0:00:39.7]} 66. Re8
{[%clk 0:00:23.5]} 66... Kd1 {[%clk 0:00:40.3]} 67. Rd8 {[%clk 0:00:24.6]} 67...
d2 {[%clk 0:00:41.4]} 68. Kb2 {[%clk 0:00:25]} 68... Rb6+ {[%clk 0:00:41]} 69.
Kc3 {[%clk 0:00:25.7]} 69... Kc1 {[%clk 0:00:41.5]} 70. Ra8 {[%clk 0:00:05.8]}
70... d1=Q {[%clk 0:00:37.9]} 71. Ra1+ {[%clk 0:00:06.1]} 71... Rb1 {[%clk
0:00:38.6]} 0-1

[Event "*** Qualifier 4: Titled Tuesday 3|2 Blitz"]
[Site "Chess.com"]
[Date "2017.04.25"]
[Round "5"]
[White "pedromartinez91"]
[Black "dhanushbharadwaj"]
[Result "0-1"]
[WhiteElo "2309"]
[BlackElo "2459"]
[TimeControl "180+2"]
[EndTime "14:05:32 PDT"]
[Termination "dhanushbharadwaj won on time"]

1. Nf3 {[%clk 0:03:02]} 1... Nf6 {[%clk 0:02:51.6]} 2. g3 {[%clk 0:03:02.9]}
2... g6 {[%clk 0:02:52]} 3. Bg2 {[%clk 0:03:04.5]} 3... Bg7 {[%clk 0:02:53.5]}
4. O-O {[%clk 0:03:06.1]} 4... O-O {[%clk 0:02:53]} 5. d4 {[%clk 0:03:07.6]}
5... d6 {[%clk 0:02:54.2]} 6. c4 {[%clk 0:03:08.5]} 6... Nbd7 {[%clk 0:02:54.4]}
7. Nc3 {[%clk 0:03:09.6]} 7... e5 {[%clk 0:02:53.3]} 8. Qc2 {[%clk 0:03:11.1]}
8... c6 {[%clk 0:02:53.8]} 9. Rd1 {[%clk 0:03:11.4]} 9... Qc7 {[%clk 0:02:53.7]}
10. h3 {[%clk 0:03:06.9]} 10... Re8 {[%clk 0:02:53.2]} 11. dxe5 {[%clk
0:03:05.8]} 11... dxe5 {[%clk 0:02:53.4]} 12. e4 {[%clk 0:03:07.3]} 12... Nc5
{[%clk 0:02:50.2]} 13. Be3 {[%clk 0:03:01.7]} 13... Ne6 {[%clk 0:02:50.5]} 14.
c5 {[%clk 0:03:00.6]} 14... Bd7 {[%clk 0:02:22.1]} 15. b4 {[%clk 0:02:44]} 15...
Rad8 {[%clk 0:02:22]} 16. Rd3 {[%clk 0:02:35.9]} 16... Bc8 {[%clk 0:02:21.1]}
17. Rad1 {[%clk 0:02:35.9]} 17... h6 {[%clk 0:01:32.3]} 18. Rd6 {[%clk
0:02:32.9]} 18... Bf8 {[%clk 0:01:30.3]} 19. R6d2 {[%clk 0:01:55.9]} 19... Bg7
{[%clk 0:01:21.8]} 20. Rd6 {[%clk 0:01:55.6]} 20... Bf8 {[%clk 0:01:22.5]} 21.
R6d2 {[%clk 0:01:55.7]} 21... Rxd2 {[%clk 0:01:21.5]} 22. Qxd2 {[%clk
0:01:50.5]} 22... Rd8 {[%clk 0:01:21.6]} 23. Qc1 {[%clk 0:01:50.1]} 23... Rxd1+
{[%clk 0:01:22.2]} 24. Qxd1 {[%clk 0:01:49.7]} 24... a5 {[%clk 0:01:23.8]} 25.
a3 {[%clk 0:01:45.1]} 25... axb4 {[%clk 0:01:24.8]} 26. axb4 {[%clk 0:01:46.2]}
26... Bg7 {[%clk 0:01:24.6]} 27. Qd2 {[%clk 0:01:45.3]} 27... g5 {[%clk
0:01:23.8]} 28. h4 {[%clk 0:01:36.5]} 28... Ng4 {[%clk 0:01:19.7]} 29. hxg5
{[%clk 0:01:32]} 29... Nxe3 {[%clk 0:01:20.1]} 30. Qxe3 {[%clk 0:01:32]} 30...
hxg5 {[%clk 0:01:20.7]} 31. Nxg5 {[%clk 0:01:30.9]} 31... Qd8 {[%clk 0:01:10.5]}
32. Nxe6 {[%clk 0:01:29.5]} 32... Bxe6 {[%clk 0:01:12.4]} 33. Bf1 {[%clk
0:01:27.2]} 33... Bf6 {[%clk 0:00:52.9]} 34. Qd3 {[%clk 0:01:24.4]} 34... Qa8
{[%clk 0:00:30.9]} 35. Qf3 {[%clk 0:01:04.8]} 35... Bg5 {[%clk 0:00:30.2]} 36.
b5 {[%clk 0:00:51.1]} 36... Qa1 {[%clk 0:00:30.2]} 37. Kg2 {[%clk 0:00:45.2]}
37... Bd2 {[%clk 0:00:25.2]} 38. bxc6 {[%clk 0:00:42]} 38... bxc6 {[%clk
0:00:25.9]} 39. Nd1 {[%clk 0:00:34.6]} 39... Bb4 {[%clk 0:00:23.7]} 40. Ne3
{[%clk 0:00:31]} 40... Bxc5 {[%clk 0:00:22.6]} 41. Ng4 {[%clk 0:00:31.5]} 41...
Bd4 {[%clk 0:00:17.3]} 42. Nf6+ {[%clk 0:00:28.2]} 42... Kf8 {[%clk 0:00:17.3]}
43. Qh5 {[%clk 0:00:25]} 43... Ke7 {[%clk 0:00:16.1]} 44. Qg5 {[%clk 0:00:25.7]}
44... Kd6 {[%clk 0:00:16.5]} 45. Ng8 {[%clk 0:00:20.4]} 45... Bh3+ {[%clk
0:00:14.9]} 46. Kxh3 {[%clk 0:00:16.7]} 46... Qxf1+ {[%clk 0:00:15.9]} 47. Kh4
{[%clk 0:00:17.3]} 47... Qh1+ {[%clk 0:00:13.9]} 48. Kg4 {[%clk 0:00:18.3]}
48... Qxe4+ {[%clk 0:00:14.8]} 49. Kh5 {[%clk 0:00:19.7]} 49... Qh7+ {[%clk
0:00:15.1]} 50. Kg4 {[%clk 0:00:17.6]} 50... Qg6 {[%clk 0:00:16.1]} 51. Qxg6+
{[%clk 0:00:17.2]} 51... fxg6 {[%clk 0:00:18]} 52. Nf6 {[%clk 0:00:15.2]} 52...
Ke6 {[%clk 0:00:18.3]} 53. Ne4 {[%clk 0:00:16]} 53... c5 {[%clk 0:00:19.7]} 54.
Kf3 {[%clk 0:00:17]} 54... c4 {[%clk 0:00:20.8]} 55. Ke2 {[%clk 0:00:18]} 55...
Kd5 {[%clk 0:00:21]} 56. f3 {[%clk 0:00:19]} 56... Bb6 {[%clk 0:00:21]} 57. Kd2
{[%clk 0:00:19.4]} 57... Kd4 {[%clk 0:00:22.1]} 58. Kc2 {[%clk 0:00:15.6]} 58...
Ke3 {[%clk 0:00:22.7]} 59. Ng5 {[%clk 0:00:16.6]} 59... Bd4 {[%clk 0:00:22.7]}
60. f4 {[%clk 0:00:15.2]} 60... exf4 {[%clk 0:00:23.3]} 61. gxf4 {[%clk
0:00:16.3]} 61... Kxf4 {[%clk 0:00:24.6]} 62. Ne6+ {[%clk 0:00:17.2]} 62... Ke5
{[%clk 0:00:25.6]} 63. Nf8 {[%clk 0:00:15.7]} 63... g5 {[%clk 0:00:26.8]} 64.
Ng6+ {[%clk 0:00:16.2]} 64... Ke4 {[%clk 0:00:27.5]} 65. Ne7 {[%clk 0:00:12.9]}
65... g4 {[%clk 0:00:28]} 66. Nc6 {[%clk 0:00:13.2]} 66... g3 {[%clk 0:00:28.6]}
67. Nxd4 {[%clk 0:00:11.5]} 67... Kxd4 {[%clk 0:00:29.8]} 0-1

[Event "*** Qualifier 4: Titled Tuesday 3|2 Blitz"]
[Site "Chess.com"]
[Date "2017.04.25"]
[Round "5"]
[White "LonesomeGeorge1"]
[Black "Winehouse83"]
[Result "1-0"]
[WhiteElo "2227"]
[BlackElo "2262"]
[TimeControl "180+2"]
[EndTime "14:05:32 PDT"]
[Termination "LonesomeGeorge1 won by resignation"]

1. d4 {[%clk 0:03:02]} 1... Nf6 {[%clk 0:03:00]} 2. Bf4 {[%clk 0:03:02.9]} 2...
c5 {[%clk 0:02:59.7]} 3. e3 {[%clk 0:03:02.2]} 3... d5 {[%clk 0:02:38.7]} 4. c3
{[%clk 0:03:02.3]} 4... Nc6 {[%clk 0:02:36.6]} 5. Nd2 {[%clk 0:03:03.1]} 5...
cxd4 {[%clk 0:02:13.5]} 6. exd4 {[%clk 0:03:03]} 6... Bf5 {[%clk 0:02:14.2]} 7.
Qb3 {[%clk 0:02:56.1]} 7... Qc8 {[%clk 0:02:09.4]} 8. Ngf3 {[%clk 0:02:55.6]}
8... e6 {[%clk 0:02:09.4]} 9. h3 {[%clk 0:02:54.6]} 9... Be7 {[%clk 0:02:10]}
10. Nh4 {[%clk 0:02:34.1]} 10... Be4 {[%clk 0:02:03.5]} 11. Nxe4 {[%clk
0:02:25.7]} 11... Nxe4 {[%clk 0:02:03.8]} 12. Nf3 {[%clk 0:02:25.4]} 12... O-O
{[%clk 0:02:01.8]} 13. Bd3 {[%clk 0:02:25.5]} 13... Bd6 {[%clk 0:01:46.6]} 14.
Bxd6 {[%clk 0:02:14.4]} 14... Nxd6 {[%clk 0:01:46.9]} 15. O-O {[%clk 0:02:15.6]}
15... g6 {[%clk 0:01:35.9]} 16. Rfe1 {[%clk 0:02:14.3]} 16... Rb8 {[%clk
0:01:30.3]} 17. h4 {[%clk 0:01:56.5]} 17... b5 {[%clk 0:01:23]} 18. a3 {[%clk
0:01:56.5]} 18... a5 {[%clk 0:01:22.2]} 19. h5 {[%clk 0:01:51.8]} 19... Qd8
{[%clk 0:01:18.4]} 20. Qd1 {[%clk 0:01:45]} 20... b4 {[%clk 0:01:11.7]} 21. axb4
{[%clk 0:01:46.9]} 21... axb4 {[%clk 0:01:13.2]} 22. Qd2 {[%clk 0:01:44.2]}
22... bxc3 {[%clk 0:01:06.7]} 23. bxc3 {[%clk 0:01:46.1]} 23... Qf6 {[%clk
0:01:03.5]} 24. Ra6 {[%clk 0:01:42.5]} 24... Rfc8 {[%clk 0:01:03.4]} 25. Ne5
{[%clk 0:01:30.1]} 25... Ne4 {[%clk 0:00:21]} 26. Bxe4 {[%clk 0:01:25.1]} 26...
Nxe5 {[%clk 0:00:22.1]} 27. dxe5 {[%clk 0:01:19.2]} 27... Qxe5 {[%clk
0:00:23.2]} 28. Bxg6 {[%clk 0:00:56.8]} 28... Qxc3 {[%clk 0:00:23.9]} 29. Qxc3
{[%clk 0:00:55.8]} 29... Rxc3 {[%clk 0:00:24.1]} 30. Bb1 {[%clk 0:00:56.5]}
30... Kg7 {[%clk 0:00:20.1]} 31. Ra7 {[%clk 0:00:51.1]} 31... Rcb3 {[%clk
0:00:18.2]} 32. Bc2 {[%clk 0:00:45.9]} 32... Rb2 {[%clk 0:00:18.1]} 33. Ba4
{[%clk 0:00:45.4]} 33... Ra2 {[%clk 0:00:16.1]} 34. Ra6 {[%clk 0:00:20.5]} 34...
Rb4 {[%clk 0:00:12.9]} 35. Bb5 {[%clk 0:00:19.6]} 35... Rab2 {[%clk 0:00:10.2]}
36. Bf1 {[%clk 0:00:20.2]} 36... Rh4 {[%clk 0:00:10.5]} 37. Ra7 {[%clk
0:00:14.1]} 37... Kf6 {[%clk 0:00:10.7]} 38. Rc1 {[%clk 0:00:13.7]} 38... Rf4
{[%clk 0:00:09.5]} 39. Rcc7 {[%clk 0:00:12.7]} 39... Kg5 {[%clk 0:00:09.3]} 40.
Rxf7 {[%clk 0:00:11.8]} 40... Rbxf2 {[%clk 0:00:09.6]} 41. Rxf4 {[%clk
0:00:12.4]} 41... Rxf4 {[%clk 0:00:09.5]} 42. Rxh7 {[%clk 0:00:13.5]} 42... e5
{[%clk 0:00:09.3]} 43. Rd7 {[%clk 0:00:13.7]} 43... d4 {[%clk 0:00:09.4]} 44.
Rd5 {[%clk 0:00:14.3]} 44... Kf6 {[%clk 0:00:09.3]} 45. h6 {[%clk 0:00:14.4]}
45... Rh4 {[%clk 0:00:10]} 46. Rd6+ {[%clk 0:00:13.3]} 46... Kg5 {[%clk
0:00:09.3]} 47. Kf2 {[%clk 0:00:12.5]} 47... Rf4+ {[%clk 0:00:05.8]} 48. Ke2
{[%clk 0:00:12.7]} 48... Rf8 {[%clk 0:00:04.9]} 49. Re6 {[%clk 0:00:10.8]} 49...
d3+ {[%clk 0:00:05.5]} 50. Kxd3 {[%clk 0:00:05.4]} 50... Rxf1 {[%clk 0:00:06]}
51. Ke4 {[%clk 0:00:06.3]} 51... Re1+ {[%clk 0:00:06.2]} 52. Kd5 {[%clk
0:00:07.6]} 52... Rh1 {[%clk 0:00:02]} 53. Kxe5 {[%clk 0:00:06]} 53... Re1+
{[%clk 0:00:02.7]} 54. Kd6 {[%clk 0:00:07.3]} 54... Rg1 {[%clk 0:00:03.9]} 55.
Ke7 {[%clk 0:00:04.3]} 55... Rxg2 {[%clk 0:00:04.9]} 56. Kf7 {[%clk 0:00:05.8]}
56... Kf5 {[%clk 0:00:04.8]} 57. Rf6+ {[%clk 0:00:06.6]} 57... Ke5 {[%clk
0:00:06.1]} 58. Rg6 {[%clk 0:00:07]} 58... Rf2+ {[%clk 0:00:07]} 59. Kg7 {[%clk
0:00:08.3]} 59... Ra2 {[%clk 0:00:07.7]} 60. h7 {[%clk 0:00:09.8]} 60... Ra7+
{[%clk 0:00:08]} 61. Kh6 {[%clk 0:00:11.2]} 61... Ra8 {[%clk 0:00:09.4]} 62. Rg8
{[%clk 0:00:12.6]} 62... Ra6+ {[%clk 0:00:10.6]} 63. Kh5 {[%clk 0:00:13.7]}
63... Ra1 {[%clk 0:00:11]} 64. h8=Q+ {[%clk 0:00:14.3]} 1-0